Cogmind - Beta 13 @@@ ROGUE MODE // 2024.04.15 @ 23:04:36 Player: m1m1c Result: Destroyed by G-47 Trooper with Particle Gun Performance ------------- Evolutions (2) 1000 Regions Visited (3) 600 Robots Destroyed (37) 185 Value Destroyed (1076) 1076 Prototype IDs (2) 40 Alien Tech Used (0) 0 Bonus (0) 0 TOTAL SCORE: 2901 Bonus ------- None Cogmind --------- Core Integrity 0/550 Matter 82/300 Energy 100/100 System Corruption 6% Temperature Cool (9) Movement Core (150) Ox2 Location -8/Materials Parts ------- > --- POWER (1) -------- (None) > --- PROPULSION (3) --- (None) > --- UTILITY (5) ------ Small Storage Unit Improved Sensor Array Utility Shielding Hacking Suite Hacking Suite > --- WEAPON (2) ------- (None) > --- INVENTORY (8) ---- Heat Sink Reaction Control System Advanced Beam Cannon Datajack Plasma Cutter Peak State ------------ > --- POWER ------------ Heavy Ion Engine > --- PROPULSION ------- Improved Treads Improved Treads Improved Treads > --- UTILITY ---------- Heat Sink Large Storage Unit Sensor Array Hacking Suite Hacking Suite > --- WEAPON ----------- Beam Cannon Improved Light Cannon > --- INVENTORY -------- Improved Ion Engine Heavy Ion Engine Heavy Ion Engine Light Treads Light Treads Compact Wheel Flight Unit Flight Unit Flight Unit Flight Unit VTOL Module Small Storage Unit Grenade Launcher [Rating: 22] Favorites ----------- Power Light Ion Engine Engine Light Ion Engine Propulsion Improved Treads Treads Improved Treads Leg Aluminum Leg Wheel Compact Wheel Flight Unit Flight Unit Utility Light Armor Plating Device Sensor Array Storage Large Storage Unit Processor Improved Targeting Computer Hackware Hacking Suite Protection Light Armor Plating Weapon Light Assault Rifle Energy Cannon Beam Cannon Ballistic Gun Light Assault Rifle Ballistic Cannon Improved Light Cannon Launcher Grenade Launcher Special Weapon Plasma Cutter Build | -11 -10 -9 -8 ------- Run | Yrd Mat Mat Mat Slots Evolved 4 | . . 2 2 Power . | . . . . Propulsion 1 | . . . 1 Utility 3 | . . 2 1 Weapon . | . . . . Parts Attached 66 | . 16 21 29 Power 10 | . 3 3 4 Engine 10 | . 3 3 4 Core . | . . . . Reactor . | . . . . Propulsion 24 | . 8 8 8 Treads 10 | . 2 7 1 Leg 1 | . 1 . . Wheel 6 | . 4 1 1 Hover . | . . . . Flight 7 | . 1 . 6 Utility 18 | . 3 7 8 Device 3 | . . . 3 Storage 2 | . 1 . 1 Processor 1 | . . 1 . Hackware 2 | . . . 2 Protection 10 | . 2 6 2 Artifact . | . . . . Weapon 14 | . 2 3 9 Energy Gun . | . . . . Energy Cannon 6 | . . 1 5 Ballistic Gun 2 | . 1 1 . Ballistic Cannon 3 | . . 1 2 Launcher 2 | . 1 . 1 Special Weapon 1 | . . . 1 Impact Weapon . | . . . . Slashing Weapon . | . . . . Piercing Weapon . | . . . . Special Melee Weapon . | . . . . Unidentified Prototypes 2 | . . 1 1 Parts Lost 33 | . 9 7 17 Power 7 | . 2 2 3 Propulsion 13 | . 5 1 7 Utility 8 | . . 4 4 Weapon 5 | . 2 . 3 Highest Loss Streak 8 | . 7 3 8 To Critical Strikes . | . . . . Average Slot Usage (%) 83 | . 74 96 77 Engine 11 | . 14 10 8 Treads 9 | . 6 10 10 Leg 3 | . 10 . . Wheel 5 | . 5 9 . Flight 4 | . 1 . 13 Device 2 | . . . 9 Storage 11 | . 14 11 9 Processor 4 | . . 9 3 Hackware 3 | . . . 10 Protection 10 | . 2 23 4 Energy Cannon 4 | . . 8 4 Ballistic Gun 9 | . 17 10 . Ballistic Cannon 2 | . . 3 4 Naked Turns . | . . . . Heaviest Build 42 | 10 27 39 42 Greatest Support 69 | 20 40 46 69 Greatest Overweight (x) 5 | . 5 2 3 Average Overweight (x) . | . . . . Largest Inventory Capacity 15 | 8 15 15 15 Average Capacity 11 | 8 8 15 10 Most Carried 15 | 6 9 15 15 Average Carried 9 | 6 6 12 9 Final Capacity 15 | 8 15 15 8 Final Carried 15 | 6 8 15 5 Class Distribution -------------------- 81% | Mutant 11% | Scavenger-Mutant 7% | Hacker-Mutant Dominant Class ---------------- Mutant | -10/Materials Mutant | -9/Materials Mutant | -8/Materials Resources | -11 -10 -9 -8 ----------- Run | Yrd Mat Mat Mat Matter Collected 865 | 200 270 231 164 Remotely . | . . . . Salvage Created 1194 | . 543 397 254 Parts 80 | . 27 27 26 Haulers Intercepted 1 | . . 1 . Recyclers Shooed 3 | . 1 . 2 Parts Field Recycled . | . . . . Retrieved Matter . | . . . . Parts Self-Destructed . | . . . . Prevented . | . . . . Kills | -11 -10 -9 -8 ------- Run | Yrd Mat Mat Mat Combat Hostiles Destroyed 28 | . 11 7 10 Guns 10 | . 8 2 . Cannons 14 | . . 5 9 AOE 4 | . 3 . 1 Classes Destroyed 10 | . 6 3 1 Worker 1 | . 1 . . Hauler 1 | . . 1 . Recycler 1 | . 1 . . Mechanic 1 | . 1 . . Operator 3 | . 1 . 2 Watcher 2 | . 1 1 . Swarmer 6 | . . . 6 Grunt 16 | . 11 1 4 Duelist 1 | . . 1 . Sentry 5 | . . 5 . Best Kill Streak 5 | . 5 2 5 Combat Bots Only 5 | . 4 2 5 Max Kills in Single Turn 2 | . 2 1 1 Gunslinging . | . . . . Exploded 1 | . 1 . 1 Melee . | . . . . Uniques/NPCs Destroyed . | . . . . Combat | -11 -10 -9 -8 -------- Run | Yrd Mat Mat Mat Hostile Shots Fired 352 | . 130 67 155 Missed 93 | . 44 17 32 Damage Taken 3400 | . 1166 772 1462 Core 867 | . 188 123 556 Absorbed by Shields . | . . . . Redirected to Shielding 14 | . . . 14 Core Remaining (%) 64 | 100 24 69 . Volleys Fired 115 | . 50 29 36 Largest 2 | . 2 2 2 Hottest 99 | . 40 99 99 Shots Fired 197 | . 88 58 51 Gun 107 | . 78 29 . Cannon 79 | . . 29 50 Launcher 11 | . 10 . 1 Special . | . . . . Kinetic 139 | . 78 35 26 Thermal 47 | . . 23 24 Explosive 11 | . 10 . 1 Electromagnetic . | . . . . Robot Hit Streak 18 | . 12 18 12 Robot Miss Streak 3 | . 2 2 3 Penetration Max . | . . . . Secondary Targets 1 | . 1 . . Max Gunslinging Chain 1 | . 1 . . Shots Hit Robots 141 | . 66 41 34 Core Hits 76 | . 39 16 21 Critical Kills . | . . . . Critical Parts Destroyed 1 | . 1 . . Critical Strikes 2 | . 1 . 1 Destroy 1 | . 1 . . Blast 1 | . . . 1 Melee Attacks . | . . . . Impact . | . . . . Slashing . | . . . . Piercing . | . . . . Sneak Attacks . | . . . . Combat Hostiles . | . . . . Follow-up Attacks . | . . . . Damage Inflicted 2345 | . 927 649 769 Guns 726 | . 476 250 . Cannons 1072 | . . 399 673 Explosions 539 | . 446 . 93 Melee . | . . . . Ramming 8 | . 5 . 3 Kinetic 1225 | . 476 352 397 Thermal 573 | . . 297 276 Explosive 539 | . 446 . 93 Electromagnetic . | . . . . Impact . | . . . . Slashing . | . . . . Piercing . | . . . . Highest Corruption 6 | . . . 6 Average Corruption 5 | . . . 5 Corruption Purged . | . . . . Corruption Blocked . | . . . . Effects 9 | . . . 9 Message Errors 2 | . . . 2 Matter Fused 2 | . . . 2 Heat Flow Errors 1 | . . . 1 Data Loss (minor) 2 | . . . 2 Data Loss (major) 2 | . . . 2 Overload Shots . | . . . . Overflow Damage 33 | . 13 . 20 Projectiles 15 | . . . 15 Explosions 18 | . 13 . 5 Melee . | . . . . Knockbacks 10 | . . . 10 Impact . | . . . . Kinetic 8 | . . . 8 Secondary 2 | . . . 2 Self-Inflicted Damage 158 | . 127 . 31 Shots 7 | . 6 . 1 Rammed 1 | . . . 1 Targets Rammed 3 | . 2 . 1 Kicked 2 | . 2 . . Crushed . | . . . . Highest Temperature 272 | . 35 272 191 Average Temperature 62 | . 11 80 74 Received Heat Transfer 1299 | . 567 255 477 Effects 2 | . . 2 . Interference 2 | . . 2 . Siege Activations . | . . . . Robots Corrupted . | . . . . Combat Hostiles . | . . . . Parts Fried . | . . . . Impact Corruptions . | . . . . Robots Melted . | . . . . Combat Hostiles . | . . . . Parts Melted 2 | . . 2 . Heat Transferred 1184 | . . 629 555 Parts Sabotaged . | . . . . Parts Stolen . | . . . . Parts Stripped . | . . . . Power Chain Reactions . | . . . . Alert | -11 -10 -9 -8 ------- Run | Yrd Mat Mat Mat Peak Influence 215 | . 215 190 172 Initial 1 | . . 1 . Average 64 | . 50 76 64 Maximum Alert Level 1 | . 1 . . Low Security (%) 98 | 100 94 100 100 Level 1 1 | . 5 . . Level 2 . | . . . . Level 3 . | . . . . Level 4 . | . . . . Level 5 . | . . . . High Security . | . . . . Max Security . | . . . . Squads Dispatched 9 | . 4 1 4 Investigation 4 | . 2 1 1 Extermination . | . . . . Reinforcement 5 | . 2 . 3 Assault . | . . . . Garrison . | . . . . Intercept . | . . . . Searches Triggered . | . . . . Construction Impeded . | . . . . Haulers Reinforced . | . . . . Active Scanning Responses . | . . . . Cargo Convoy Interrupts . | . . . . Stealth | -11 -10 -9 -8 --------- Run | Yrd Mat Mat Mat Distress Signals 6 | . 2 1 3 Communications Jammed . | . . . . Distress Signals . | . . . . Times Spotted 57 | . 19 9 29 Peak Tracking Total 10 | . 10 3 9 Tactical Retreats 3 | . . . 3 Traps | -11 -10 -9 -8 ------- Run | Yrd Mat Mat Mat Traps Triggered 6 | . 2 . 4 Indirectly . | . . . . Trap Hack Attempts . | . . . . Triggered . | . . . . Disarmed . | . . . . Reprogrammed . | . . . . Reused . | . . . . Traps Extracted . | . . . . Installed . | . . . . Triggered . | . . . . Machines | -11 -10 -9 -8 ---------- Run | Yrd Mat Mat Mat Machines Disabled 2 | . 2 . . Max in Single Turn 1 | . 1 . . Machines Repaired . | . . . . Machines Dismantled . | . . . . Machines Sabotaged . | . . . . Overloaded Fab Kills . | . . . . Hacking | -11 -10 -9 -8 --------- Run | Yrd Mat Mat Mat Machines Accessed 10 | . 2 5 3 Terminals 8 | . 1 4 3 Fabricators . | . . . . Repair Stations . | . . . . Recycling Units 1 | . 1 . . Scanalyzers 1 | . . 1 . Garrison Access . | . . . . Total Hacks 27 | . 8 9 10 Successful 13 | . 5 3 5 Failed 14 | . 3 6 5 Catastrophic 6 | . . 3 3 Database Lockouts . | . . . . Manual 12 | . 3 1 8 Terminals 23 | . 6 7 10 Fabricators . | . . . . Repair Stations . | . . . . Recycling Units 2 | . 2 . . Scanalyzers 2 | . . 2 . Garrison Access . | . . . . Terminal Hacks 9 | . 3 1 5 Record 1 | . . . 1 Emergency Access Points 1 | . . . 1 Alert Level 1 | . 1 . . Unreport Threat 5 | . 1 1 3 Recall Investigation 1 | . 1 . . Fabricator Hacks . | . . . . Repair Station Hacks . | . . . . Recycling Unit Hacks 2 | . 2 . . Retrieve Matter 1 | . 1 . . Retrieve Components 1 | . 1 . . Scanalyzer 2 | . . 2 . Insert Component 1 | . . 1 . Analyze 1 | . . 1 . Garrison Access Hacks . | . . . . Unauthorized Hacks . | . . . . Terminals . | . . . . Fabricators . | . . . . Repair Stations . | . . . . Recycling Units . | . . . . Scanalyzers . | . . . . Garrison Access . | . . . . Data Cores Recovered . | . . . . Used . | . . . . Hacking Detections 8 | . 1 4 3 Full Trace Events 2 | . . 1 1 Feedback Events . | . . . . Feedback Blocked . | . . . . Robot Schematics Acquired . | . . . . Robots Built . | . . . . Authchips . | . . . . Time . | . . . . Total Robot Build Rating . | . . . . Part Schematics Acquired 1 | . . 1 . Parts Built . | . . . . Authchips . | . . . . Time . | . . . . Total Part Build Rating . | . . . . Parts Repaired . | . . . . Time . | . . . . Parts Recycled . | . . . . Recycled Matter . | . . . . Retrieved Matter 207 | . 207 . . Retrieved Components 10 | . 10 . . Parts Scanalyzed 1 | . . 1 . Part Schematics Acquired 1 | . . 1 . Parts Damaged . | . . . . Bothacking | -11 -10 -9 -8 ------------ Run | Yrd Mat Mat Mat Used RIF Installer . | . . . . Robots Hacked . | . . . . Non-combat . | . . . . Combat . | . . . . Robot Hacks Applied . | . . . . Relay Couplers Released . | . . . . Fabnet Peak Effective % . | . . . . Robots Rewired . | . . . . Allies Hacked . | . . . . Hacks Repelled . | . . . . Allies | -11 -10 -9 -8 -------- Run | Yrd Mat Mat Mat Total Allies . | . . . . Largest Group . | . . . . Highest-Rated Group . | . . . . Highest-Rated Ally . | . . . . Total Orders . | . . . . Ally Attacks . | . . . . Total Damage . | . . . . Kills . | . . . . Allies Corrupted . | . . . . Allies Melted . | . . . . Intel | -11 -10 -9 -8 ------- Run | Yrd Mat Mat Mat Robot Analysis Total . | . . . . Derelict Logs Recovered . | . . . . Drone Launches . | . . . . Drone Recoveries . | . . . . Exploration | -11 -10 -9 -8 ------------- Run | Yrd Mat Mat Mat Turns Passed 1674 | 4 564 580 526 Spaces Moved 1035 | 4 323 326 382 Core 24 | . 12 . 12 Treads 273 | . 39 146 88 Legs 130 | 4 126 . . Wheels 277 | . 94 180 3 Hover . | . . . . Flight 331 | . 52 . 279 Fastest Speed 32 | 120 100 100 32 Average Speed 109 | 120 125 137 72 Slowest Speed 300 | 120 300 160 200 Overloaded Moves . | . . . . Propulsion Burnouts . | . . . . Robots Hopped 4 | . . . 4 Cave-ins Triggered . | . . . . Exploration Rate (%) 23 | 2 35 25 33 Regions Visited 3 Branch Regions . Pre-discovered Areas . | . . . . Known Exits Taken . | . . . . Unknown Exits Taken 3 | 1 1 1 . Scrap Searched . | . . . . Spaces Dug . | . . . . Terrain Destroyed 23 | . 18 1 4 Melee . | . . . . Projectile 2 | . . 1 1 AOE 21 | . 18 . 3 Terrain Rammed . | . . . . Walls Destroyed . | . . . . Machines Disabled . | . . . . Actions | -11 -10 -9 -8 --------- Run | Yrd Mat Mat Mat Total 1401 | 3 408 405 585 Wait 108 | . 1 . 107 Move 1024 | 3 322 325 374 Hop 4 | . . . 4 Pick Up 38 | . 10 16 12 Fast Attach 17 | . 6 7 4 Attach 45 | . 9 13 23 Detach 19 | . 2 8 9 Swap 4 | . 1 1 2 Drop 24 | . 5 6 13 Fire 115 | . 50 29 36 Melee . | . . . . Ram . | . . . . Kick 2 | . 2 . . Crush 1 | . . . 1 Escape Stasis . | . . . . Rewire . | . . . . Trap . | . . . . Miscellaneous . | . . . . Route ------- -11/Scrapyard -10/Materials -9/Materials -8/Materials History --------- Turn | Location | Event 1 | -11/Scrapyard | Discovered new exit (range 3) 5 | -11/Scrapyard | Entered Materials 310 | -10/Materials | Build established: Mutant 325 | -10/Materials | Core integrity fell below 50% 327 | -10/Materials | Discovered new exit (range 14) 378 | -10/Materials | Lost 7 parts (1p4n2w) 569 | -10/Materials | Entered another Materials area 569 | -9/Materials | Evolved 2 slots: Utility x2 745 | -9/Materials | Lost 3 parts (3u) 1074 | -9/Materials | Discovered new exit (range 8) 1149 | -9/Materials | Entered another Materials area 1149 | -8/Materials | Evolved 2 slots: Propulsion x1, Utility x1 1227 | -8/Materials | Lost 3 parts (3u) 1526 | -8/Materials | Core integrity fell below 50% 1548 | -8/Materials | Lost 8 parts (1p3n1u3w) 1664 | -8/Materials | Core integrity fell below 20% 1675 | -8/Materials | Destroyed by G-47 Trooper with Particle Gun Last Messages --------------- O-16 Technician locks terminal. O-16 Technician destroyed. K-01 Serf collects debris. Acquired Datajack. K-01 Serf collects debris. Acquired Lgt. Ion Engine. K-01 Serf collects debris. Dropped Hvy. Ion Engine. K-01 Serf collects debris. W-25 Informer sends out distress signal. System corrupted: Matter fused (-10). Acquired Imp. Sensor Array. Flight Unit destroyed. Critical hit (Burn: +37). Com. Wheel destroyed. System corrupted: Heat flow error (+207). Lgt. Ion Engine destroyed. Critical hit (Burn: +37). Lgt. Ion Engine destroyed. Y-45 Defender suffers critical hit (Burn). Map ----- +----------------------------------------------------+ | ?????????????????????????????????????????????????? | | ?????????????????????????????????????????????????? | | ?????????????????????????????????????????????????? | | ?????????????????????????????????????????????????? | | ?????????????????????????????????????????????????? | | ?????????????????????????????????????????????????? | | ?????????????????????????????????????????????????? | | ?????????????????????????????????????????????????? | | ?????????????????????????????????????????????????? | | ?????????????????????????????????????????????????? | | ?????????????????????????????????????????????????? | | ?????????????????????????????????????????????????? | | ?????????????????????????????????????????????????? | | ?????????????????????????????????????????????????? | | ?????????????????????????????????????????????????? | | ???????????????????????????????????#???#######???? | | ???????????????????????????????#### #### #???? | | ???????????????????????????????? ## """#???? | | ???????????????????????????????? """ !## """#???? | | ?????????????????????????????????"Y" ?# """#???? | | ????????????????????????????????? ?# """#???? | | ?????????????????????????????????? ??# #???? | | ?????????????????????????????????? ??# #???? | | ?????????????########+#############+######+####??? | | ?????????? g g #??? | | ?????H???? @ l gw u #??? | | ?????????? Y Y k #??? | | ?????????????#+#############+### ######## #?## | | ??????????????????????????? ?# #??????# #?#" | | ??????????????????????????T [[?# #??????# #?#" | | ????????????????????????? [[?# #??????# ###" | | ????????????????????????? [ ?# #??????# | | ????????????????????????# # #??????# | | ????????????????????????# ! # #??????# """ | | ????????????????????????### #### #??????# "T" | | ??????????????????????????##???# #??????# *%= | | ???????????????????????????????# #??????# = | | ???????????????????????????????#? #??????+ | | ???????????????????????????????# #??????# | | ???????????????????????????????? ???????# | | ??????????????????????????????????????????# | | ??????????????????????????????????????????# ###+ | | ??????????????????????????????????????????# ## | | ??????????????????????????????????????????# ##" | | ??????????????????????????????????????????# ##T | | ??????????????????????????????????????????# ##" | | ??????????????????????????????????????????# ## | | ??????????????????????????????????????????# ## | | ??????????????????????????????????????????? ?# | | ??????????????????????????????????????????? ?### | +----------------------------------------------------+ Best States ------------- Heat Dissipation 41 Energy Generation 14 Energy Capacity 280 Matter Stores 300 Matter Capacity 300 Sight Range 16 Robot Scan Range 15 Terrain Scan Density 10 Armor Coverage 450 Utility Shielding 33 Evasion (%) 63 Targeting Accuracy 6 Recoil Reduction 3 Offensive Hacking 20 Item Schematics ----------------- Lgt. Armor Plating | -9/Materials | Scanalyzed Robot Schematics ------------------ None Fabricated ------------ Nothing Alien Tech Used ----------------- None Achievements -------------- None Challenges ------------ None Game ------ Seed CobblerMappingCloak Manual? 0 Play Time 00:24:15 Cumulative 24.8 hours Start 2024.04.15 @ 22:39:13 End 2024.04.15 @ 23:04:36 Sessions 1 Manual Loads 0 Difficulty Rogue Special Mode None Game No. 77 Rogue 77 Adventurer 0 Explorer 0 Win Type - Total 0 Types 0/0/0/0/0/0/0/0/0 Lore% 17 Gallery% 31 Achievement% 25 Wizard Run 0 Options --------- Layout 1 ASCII 1 Keyboard 0 Movement Arrows Keybinds 1 Fullscreen 1 Font 18/SmallcapsGlow Map View 50x40 Zoom Use 0% Tactical HUD 0 Map Filters NONE Filters NONE Steam 1 RUN: 36742d79-34f1-4229-aad0-8e5982345dea